fUST/lending_fUST_20240429
["ID","MTS","AMOUNT","RATE_DAILY","PERIOD"]
[324876497,1714389044273,-824.74,0.00031829,2]
[324876601,1714389046042,-792.68,0.00019167,3]
[324876602,1714389046051,-500.0,0.00019178,2]
[324876604,1714389046061,-500.0,0.00019178,2]
[324876606,1714389046072,-500.0,0.00019178,2]
[324876607,1714389046091,-500.0,0.00019178,2]
[324876608,1714389046100,-500.0,0.00019178,2]
[324876609,1714389046109,-500.0,0.00019178,2]
[324876610,1714389046118,-500.0,0.00019178,2]
[324876611,1714389046128,-500.0,0.00019178,2]
[324876612,1714389046137,-500.0,0.00019178,2]
[324876613,1714389046146,-500.0,0.00019178,2]
[324876615,1714389046155,-409.72,0.00019178,2]
[324876621,1714389699870,2000.0,0.000266,120]
[324876623,1714389774986,-2205.05130018,0.00019176,7]
[324876624,1714389881225,-1048.22568341,0.00019993,3]
[324876625,1714389881250,-525.01331286,0.0002,4]
[324876626,1714389900605,300.0,0.00014728,2]
[324876627,1714389901250,420.0,0.00016201,2]
[324876628,1714389955176,1853.42770413,0.00016201,2]
[324876629,1714389958046,280.75978917,0.00016201,2]
[324876630,1714389960722,16102.63338321,0.00016201,2]
[324876631,1714389961018,285.03657624,0.00016201,2]
[324876632,1714389978648,16102.63338321,0.00016201,2]
[324876633,1714389979003,272.26879288,0.00016201,2]
[324876634,1714389982006,280.61665177,0.00016201,2]
[324876635,1714389984009,265.65951833,0.00019993,7]
[324876636,1714390000168,850.84224864,0.00016201,2]
[324876637,1714390002643,936.35639698,0.00016201,2]
[324876638,1714390005624,308.94151111,0.00019992,7]
[324876639,1714390008827,3955.20467131,0.0002,10]
[324876640,1714390011154,354.49207638,9.999e-05,2]
[324876641,1714390014217,850.84224864,0.00016201,2]
[324876642,1714390032171,328.06058032,0.00016201,2]
[324876643,1714390032797,3955.20467131,0.0002,10]
[324876644,1714390048812,2997.79933149,0.0002,10]
[324876645,1714390139519,-957.40533982,0.0002,10]
[324876646,1714390152824,910.74444277,0.0002,10]
[324876704,1714390232262,-14357.4662454,0.00018488,2]
[324876706,1714390232272,-189.36782433,0.00018542,2]
[324876708,1714390232282,-166.666666,0.00018543,2]
[324876710,1714390232292,-234.88278666,0.000188,2]
[324876713,1714390232302,-234.88278665,0.00018848,2]
[324876715,1714390232312,-150.0,0.000189,2]
[324876716,1714390232321,-235.96767539,0.00019,2]
[324876719,1714390232330,-155.09652892,0.00019,2]
[324876721,1714390232340,-7934.04214632,0.00019,2]
[324876725,1714390232351,-239.19602788,0.00019177,2]
[324876728,1714390232361,-161.725064,0.00019178,2]
[324876730,1714390232370,-160.703891,0.00019178,2]
[324876732,1714390232379,-161.972289,0.00019178,2]
[324876734,1714390232388,-234.88278665,0.00019795,2]
[324876736,1714390232399,-3740.3180479,0.00019891,2]
[324876738,1714390232409,-300.0,0.00019891,2]
[324876740,1714390232418,-434.54,0.00019986,2]
[324876742,1714390232428,-1738.49371523,0.00019988,2]
[324876744,1714390232438,-154.92318613,0.00019988,2]
[324876746,1714390232447,-683.25083792,0.00019988,2]
[324876748,1714390232457,-5340.0,0.00019988,2]
[324876750,1714390232466,-702.32396249,0.00019988,2]
[324876752,1714390232476,-977.94969331,0.00019988,2]
[324876754,1714390232485,-403.64009312,0.00019988,2]
[324876756,1714390232495,-159.31478427,0.00019988,2]
[324876758,1714390232505,-204.6170675,0.00019988,2]
[324876759,1714390232515,-474.79761489,0.00019989,2]
[324876760,1714390232524,-51919.73151829,0.00019989,2]
[324876784,1714390238320,-409.19956143,0.00019988,2]
[324876786,1714390238330,-500.0,0.00019988,2]
[324876788,1714390238339,-500.0,0.00019988,2]
[324876790,1714390238353,-275.6904809,0.00019988,2]
[324876792,1714390238362,-500.0,0.00019988,2]
[324876794,1714390238371,-500.0,0.00019988,2]
[324876796,1714390238381,-500.0,0.00019988,2]
[324876798,1714390238390,-123.3705556,0.00019988,2]
[324876800,1714390238404,-457.79503827,0.00019988,2]
[324876802,1714390238414,-82.1649617,0.00019988,2]
[324876805,1714390238425,-226.73412577,0.00019988,2]
[324876807,1714390238435,-162.31314363,0.00019988,2]
[324876808,1714390238444,-500.0,0.00019988,2]
[324876810,1714390238453,-500.0,0.00019988,2]
[324876812,1714390238462,-500.0,0.00019988,2]
[324876813,1714390238471,-500.0,0.00019988,2]
[324876814,1714390238481,-500.0,0.00019988,2]
[324876815,1714390238490,-500.0,0.00019988,2]
[324876816,1714390238500,-546.40777346,0.00019988,2]
[324876817,1714390238509,-403.72862532,0.00019988,2]
[324876818,1714390238520,-500.0,0.00019988,2]
[324876819,1714390238529,-500.0,0.00019988,2]
[324876820,1714390238538,-500.0,0.00019988,2]
[324876821,1714390238548,-500.0,0.00019988,2]
[324876822,1714390238557,-8.51633184,0.00019988,2]
[324876823,1714390238569,-491.48366816,0.00019988,2]
[324876824,1714390238578,-500.0,0.00019988,2]
[324876825,1714390238587,-500.0,0.00019988,2]
[324876826,1714390238596,-500.0,0.00019988,2]
[324876827,1714390238610,-500.0,0.00019988,2]
[324876828,1714390238619,-500.0,0.00019988,2]
[324876829,1714390238627,-500.0,0.00019988,2]
[324876830,1714390238636,-500.0,0.00019988,2]
[324876831,1714390238645,-500.0,0.00019988,2]
[324876832,1714390238654,-500.0,0.00019988,2]
[324876833,1714390238663,-500.0,0.00019988,2]
[324876834,1714390238672,-500.0,0.00019988,2]
[324876835,1714390238682,-500.0,0.00019988,2]
[324876836,1714390238692,-500.0,0.00019988,2]
[324876837,1714390238702,-500.0,0.00019988,2]
[324876838,1714390238712,-500.0,0.00019988,2]
[324876839,1714390238722,-334.54592437,0.00019988,2]
[324876840,1714390238731,-500.0,0.00019988,2]
[324876841,1714390238741,-500.0,0.00019988,2]
[324876842,1714390238750,-500.0,0.00019988,2]
[324876843,1714390238760,-500.0,0.00019988,2]
[324876844,1714390238770,-500.0,0.00019988,2]
[324876845,1714390238780,-500.0,0.00019988,2]
[324876846,1714390238790,-500.0,0.00019988,2]
[324876847,1714390238799,-500.0,0.00019988,2]
[324876848,1714390238809,-500.0,0.00019988,2]
[324876849,1714390238819,-500.0,0.00019988,2]
[324876850,1714390238829,-500.0,0.00019988,2]
[324876851,1714390238839,-500.0,0.00019988,2]
[324876852,1714390238853,-500.0,0.00019988,2]
[324876853,1714390238863,-500.0,0.00019988,2]
[324876854,1714390238872,-500.0,0.00019988,2]
[324876855,1714390238881,-500.0,0.00019988,2]
[324876856,1714390238891,-500.0,0.00019988,2]
[324876857,1714390238900,-500.0,0.00019988,2]
[324876858,1714390238909,-500.0,0.00019988,2]
[324876859,1714390238919,-500.0,0.00019988,2]
[324876860,1714390238928,-500.0,0.00019988,2]
[324876861,1714390238938,-500.0,0.00019988,2]
[324876862,1714390238947,-500.0,0.00019988,2]
[324876863,1714390238956,-500.0,0.00019988,2]
[324876864,1714390238966,-500.0,0.00019988,2]
[324876865,1714390238979,-500.0,0.00019988,2]
[324876866,1714390238989,-500.0,0.00019988,2]
[324876867,1714390239000,-500.0,0.00019988,2]
[324876868,1714390239009,-500.0,0.00019988,2]
[324876869,1714390239020,-500.0,0.00019988,2]
[324876870,1714390239032,-500.0,0.00019988,2]
[324876871,1714390239041,-500.0,0.00019988,2]
[324876872,1714390239053,-91849.82555474,0.00019989,2]
[324877067,1714390243333,-212.501,0.00019986,2]
[324877068,1714390243342,-291.46938836,0.00019989,2]
[324877069,1714390243763,-851.27997663,0.00019989,2]
[324877105,1714390246327,-239.19602788,0.00019988,2]
[324877108,1714390246337,-3232.68444926,0.00019989,2]
[324877111,1714390246352,-2007.10844194,0.00019989,2]
[324877112,1714390246366,-4149.6556737,0.00019989,2]
[324877113,1714390287489,-525.01331286,0.0002,4]
[324877114,1714390300398,525.01331286,0.0002,4]
[324877121,1714390321838,525.01331286,0.0002,4]
[324877122,1714390338417,525.01331286,0.0002,4]
[324877123,1714390356532,525.01331286,0.0002,4]
[324877124,1714390376389,506.78365311,0.0002,4]
[324877135,1714390500881,300.0,0.00014728,2]
[324877136,1714390501522,420.0,0.00016201,2]
[324877138,1714390600691,9280.0,0.0001,3]
[324877139,1714390600715,4513.48153481,0.0001,3]
[324877144,1714390663217,10000.0,0.00017,2]
[324877145,1714390676132,10000.0,0.00017,2]
[324877146,1714390688338,10000.0,0.00017,2]
[324877147,1714390701065,10000.0,0.00017,2]
[324877148,1714390720746,6941.0,0.00017,2]
[324877149,1714390800742,300.0,0.00014728,2]
[324877150,1714390801365,420.0,0.00016201,2]
[324877151,1714391100949,300.0,0.00014728,2]
[324877152,1714391101560,420.0,0.00016201,2]
[324877154,1714391170977,150.0,0.000225,30]
[324877155,1714391193724,150.0,0.00025,60]
[324877156,1714391220714,300.0,0.00014728,2]
[324877157,1714391221362,420.0,0.00016201,2]
[324877230,1714391432533,-154.76784823,0.00017953,2]
[324877232,1714391432543,-4180.0050094,0.00017975,2]
[324877234,1714391432553,-1901.7266581,0.00017998,2]
[324877236,1714391432562,-166.666666,0.00018,2]
[324877238,1714391432571,-189.36782433,0.00018,2]
[324877240,1714391432582,-928.56039633,0.00018048,2]
[324877242,1714391432591,-300.0,0.00018899,2]
[324877244,1714391432600,-3505.23099754,0.000189,2]
[324877246,1714391432609,-2101.14247839,0.00018998,2]
[324877248,1714391432619,-7934.04214632,0.00019,2]
[324877250,1714391432628,-239.19602788,0.00019,2]
[324877252,1714391432637,-939.34960788,0.00019075,2]
[324877254,1714391432647,-312.89043206,0.00019075,2]
[324877256,1714391432656,-689.57545868,0.00019076,2]
[324877258,1714391432665,-160.810903,0.00019178,2]
[324877260,1714391432675,-161.725064,0.00019178,2]
[324877262,1714391432684,-154.35997309,0.00019799,2]
[324877263,1714391432693,-2000.0,0.00019873,2]
[324877265,1714391432703,-6963.0217691,0.00019888,2]
[324877267,1714391432713,-2644.85,0.00019961,3]
[324877269,1714391432723,-1322.42,0.00019961,3]
[324877271,1714391432732,-661.21,0.00019961,3]
[324877273,1714391432741,-330.61,0.00019961,3]
[324877275,1714391432751,-165.3,0.00019961,3]
[324877277,1714391432760,-495.95,0.00019961,3]
[324877279,1714391432770,-1077.00204047,0.00019971,3]
[324877281,1714391432779,-6031.17521285,0.00019971,2]
[324877367,1714391438452,-2000.0,0.00019873,2]
[324877369,1714391438462,-500.0,0.0001997,2]
[324877370,1714391438471,-500.0,0.0001997,2]
[324877372,1714391438481,-500.0,0.0001997,2]
[324877374,1714391438491,-267.248012,0.0001997,2]
[324877376,1714391438500,-500.0,0.0001997,2]
[324877378,1714391438509,-168.35928366,0.0001997,2]
[324877380,1714391438519,-500.0,0.0001997,2]
[324877381,1714391438528,-500.0,0.0001997,2]
[324877383,1714391438538,-500.0,0.0001997,2]
[324877385,1714391438547,-542.65159971,0.0001997,2]
[324877387,1714391438556,-500.0,0.0001997,2]
[324877389,1714391438565,-500.0,0.0001997,2]
[324877390,1714391438574,-500.0,0.0001997,2]
[324877392,1714391438584,-297.06939718,0.0001997,2]
[324877394,1714391438593,-500.0,0.0001997,2]
[324877396,1714391438602,-500.0,0.0001997,2]
[324877398,1714391438612,-500.0,0.0001997,2]
[324877400,1714391438621,-500.0,0.0001997,2]
[324877401,1714391438630,-500.0,0.0001997,2]
[324877403,1714391438639,-500.0,0.0001997,2]
[324877404,1714391438649,-500.0,0.0001997,2]
[324877405,1714391438658,-500.0,0.0001997,2]
[324877406,1714391438668,-500.0,0.0001997,2]
[324877407,1714391438678,-500.0,0.0001997,2]
[324877408,1714391438687,-500.0,0.0001997,2]
[324877409,1714391438696,-500.0,0.0001997,2]
[324877410,1714391438706,-500.0,0.0001997,2]
[324877411,1714391438715,-500.0,0.0001997,2]
[324877412,1714391438724,-500.0,0.0001997,2]
[324877413,1714391438733,-179.64077735,0.0001997,2]
[324877414,1714391438743,-500.0,0.0001997,2]
[324877415,1714391438752,-500.0,0.0001997,2]
[324877416,1714391438762,-500.0,0.0001997,2]
[324877417,1714391438771,-500.0,0.0001997,2]
[324877418,1714391438780,-500.0,0.0001997,2]
[324877419,1714391438790,-500.0,0.0001997,2]
[324877420,1714391438799,-500.0,0.0001997,2]
[324877421,1714391438808,-500.0,0.0001997,2]
[324877422,1714391438817,-500.0,0.0001997,2]
[324877423,1714391438924,-500.0,0.0001997,2]
[324877424,1714391438934,-500.0,0.0001997,2]
[324877425,1714391438943,-500.0,0.0001997,2]
[324877426,1714391438953,-500.0,0.0001997,2]
[324877427,1714391438962,-500.0,0.0001997,2]
[324877428,1714391438972,-500.0,0.0001997,2]
[324877429,1714391438982,-500.0,0.0001997,2]
[324877430,1714391438992,-500.0,0.0001997,2]
[324877431,1714391439002,-500.0,0.0001997,2]
[324877432,1714391439012,-500.0,0.0001997,2]
[324877433,1714391439022,-500.0,0.0001997,2]
[324877434,1714391439031,-500.0,0.0001997,2]
[324877435,1714391439042,-500.0,0.0001997,2]
[324877436,1714391439051,-500.0,0.0001997,2]
[324877437,1714391439061,-307.07176474,0.0001997,2]
[324877438,1714391439070,-500.0,0.0001997,2]
[324877439,1714391439080,-202.55382491,0.0001997,2]
[324877440,1714391439093,-297.44617509,0.0001997,2]
[324877441,1714391439103,-500.0,0.0001997,2]
[324877442,1714391439112,-500.0,0.0001997,2]
[324877443,1714391439122,-500.0,0.0001997,2]
[324877444,1714391439131,-500.0,0.0001997,2]
[324877445,1714391439141,-500.0,0.0001997,2]
[324877446,1714391439151,-500.0,0.0001997,2]
[324877447,1714391439160,-500.0,0.0001997,2]
[324877448,1714391439169,-500.0,0.0001997,2]
[324877449,1714391439179,-500.0,0.0001997,2]
[324877450,1714391439188,-500.0,0.0001997,2]
[324877451,1714391439198,-500.0,0.0001997,2]
[324877452,1714391439207,-500.0,0.0001997,2]
[324877453,1714391439216,-500.0,0.0001997,2]
[324877454,1714391439225,-500.0,0.0001997,2]
[324877455,1714391439234,-500.0,0.0001997,2]
[324877456,1714391439244,-500.0,0.0001997,2]
[324877457,1714391439253,-500.0,0.0001997,2]
[324877458,1714391439263,-500.0,0.0001997,2]
[324877459,1714391439272,-500.0,0.0001997,2]
[324877460,1714391439282,-623.93049041,0.0001997,2]
[324877461,1714391439291,-500.0,0.0001997,2]
[324877462,1714391439301,-500.0,0.0001997,2]
[324877463,1714391439311,-500.0,0.0001997,2]
[324877464,1714391439323,-500.0,0.0001997,2]
[324877465,1714391439334,-500.0,0.0001997,2]
[324877466,1714391439344,-500.0,0.0001997,2]
[324877467,1714391439354,-500.0,0.0001997,2]
[324877468,1714391439363,-500.0,0.0001997,2]
[324877469,1714391439374,-500.0,0.0001997,2]
[324877470,1714391439384,-500.0,0.0001997,2]
[324877471,1714391439396,-500.0,0.0001997,2]
[324877472,1714391439407,-500.0,0.0001997,2]
[324877473,1714391439416,-344.54592437,0.0001997,2]
[324877474,1714391439426,-500.0,0.0001997,2]
[324877475,1714391439435,-500.0,0.0001997,2]
[324877476,1714391439445,-500.0,0.0001997,2]
[324877477,1714391439454,-500.0,0.0001997,2]
[324877478,1714391439463,-500.0,0.0001997,2]
[324877479,1714391439473,-500.0,0.0001997,2]
[324877480,1714391439482,-500.0,0.0001997,2]
[324877481,1714391439492,-500.0,0.0001997,2]
[324877482,1714391439501,-500.0,0.0001997,2]
[324877483,1714391439511,-500.0,0.0001997,2]
[324877484,1714391439520,-500.0,0.0001997,2]
[324877485,1714391439530,-500.0,0.0001997,2]
[324877486,1714391439539,-500.0,0.0001997,2]
[324877487,1714391439548,-500.0,0.0001997,2]
[324877488,1714391439557,-500.0,0.0001997,2]
[324877489,1714391439567,-500.0,0.0001997,2]
[324877490,1714391439576,-500.0,0.0001997,2]
[324877491,1714391439587,-500.0,0.0001997,2]
[324877492,1714391439596,-500.0,0.0001997,2]
[324877493,1714391439605,-500.0,0.0001997,2]
[324877494,1714391439614,-500.0,0.0001997,2]
[324877495,1714391439623,-500.0,0.0001997,2]
[324877496,1714391439632,-500.0,0.0001997,2]
[324877497,1714391439642,-404169.71401924,0.00019971,2]
[324877498,1714391439651,-1496.8044313,0.00019985,2]
[324877499,1714391439660,-417.0,0.00019985,2]
[324877500,1714391439669,-150.0,0.00019985,2]
[324877501,1714391439678,-150.287,0.00019985,2]
[324877502,1714391439687,-224.837,0.00019985,2]
[324877503,1714391439696,-1676.92552467,0.00019986,2]
[324877504,1714391439706,-158.20610922,0.0001999,2]
[324877505,1714391439715,-326.79171644,0.00019992,2]
[324877506,1714391439724,-272.63468662,0.00019996,2]
[324877507,1714391439734,-6131.63223118,0.00019997,2]
[324877508,1714391439743,-67415.61392424,0.0002,2]
[324877509,1714391439752,-278.30883524,0.0002,2]
[324877510,1714391439762,-241.68429594,0.0002,2]
[324877511,1714391439771,-80000.0,0.0002,2]
[324877512,1714391439780,-154.76784823,0.0002,2]
[324877513,1714391439789,-329.93912296,0.0002,2]
[324877514,1714391439799,-13638.94786263,0.0002,2]
[324877515,1714391439811,-5226.9102651,0.0002,2]
[324877516,1714391439820,-18.22965975,0.0002,4]
[324877517,1714391439829,-285.19077408,0.0002,2]
[324877518,1714391439840,-22961.14751909,0.0002,2]
[324877519,1714391439849,-154.82968734,0.0002,2]
[324877520,1714391439858,-299.68975861,0.0002,2]
[324877521,1714391439867,-154.82968734,0.0002,2]
[324877522,1714391439876,-320.78044824,0.0002,2]
[324877523,1714391439885,-200.0,0.0002,2]
[324877524,1714391439894,-177.0,0.000203,2]
[324877525,1714391439903,-420.0,0.00020789,2]
[324877526,1714391439912,-160.0,0.0002116,2]
[324877527,1714391439921,-5289.7,0.00021331,3]
[324877528,1714391439931,-2644.84,0.00021331,3]
[324877529,1714391439940,-1322.42,0.00021331,3]
[324877530,1714391439948,-661.22,0.00021331,3]
[324877532,1714391439957,-330.6,0.00021331,3]
[324877534,1714391439966,-320.0,0.00021708,2]
[324877535,1714391439975,-10000.0,0.00021918,2]
[324877536,1714391439984,-613.1943728,0.00021918,2]
[324877537,1714391439994,-159.19819518,0.00022,2]
[324877538,1714391440003,-170.68510943,0.00022,2]
[324877540,1714391440012,-620.00752541,0.00022238,2]
[324877541,1714391440021,-480.0,0.00022256,2]
[324877542,1714391440030,-166.666672,0.00022466,2]
[324877543,1714391440039,-675.0,0.00022466,2]
[324877544,1714391440048,-166.666666,0.00022466,2]
[324877545,1714391440057,-1500.0,0.000225,2]
[324877546,1714391440067,-1500.0,0.000225,2]
[324877547,1714391440076,-1500.0,0.000225,2]
[324877548,1714391440087,-154.76784823,0.000225,2]
[324877549,1714391440096,-1500.0,0.000225,2]
[324877550,1714391440105,-10596.07047515,0.000225,2]
[324877551,1714391440114,-1564.03593502,0.000225,2]
[324877552,1714391440124,-640.0,0.00022804,2]
[324877553,1714391440134,-587.0,0.00022868,2]
[324877554,1714391440144,-417.0,0.00022985,2]
[324877555,1714391440154,-150.0,0.00022985,2]
[324877556,1714391440163,-150.0,0.00022985,2]
[324877557,1714391440172,-714.0781204,0.00023,2]
[324877558,1714391440181,-588.0,0.00023,2]
[324877559,1714391440191,-620.00037627,0.00023349,2]
[324877560,1714391440200,-308.03084457,0.00023352,2]
[324877561,1714391440210,-3505.23099754,0.000239,2]
[324877562,1714391440219,-693.32219262,0.00024,2]
[324877563,1714391440229,-620.00001881,0.00024517,2]
[324877564,1714391440238,-222.43361259,0.00024648,2]
[324877565,1714391440247,-151.47429953,0.0002465,2]
[324877566,1714391440256,-500.0,0.00024657,2]
[324877567,1714391440265,-508.52,0.00024657,2]
[324877568,1714391440275,-380.0,0.00024658,2]
[324877570,1714391440284,-200.0,0.00024658,2]
[324877572,1714391440292,-156.18617836,0.00024664,2]
[324877573,1714391440301,-839.70557191,0.00024671,2]
[324877575,1714391440314,-508.52,0.00024712,2]
[324877576,1714391440323,-151.47429953,0.00024759,2]
[324877577,1714391440332,-508.52,0.00024767,2]
[324877578,1714391440342,-508.52,0.00024821,2]
[324877580,1714391440431,-156.18617836,0.00024824,2]
[324877581,1714391440441,-224.34545947,0.00024826,2]
[324877583,1714391440451,-839.70557191,0.00024862,2]
[324877585,1714391440460,-508.52,0.00024876,2]
[324877586,1714391440469,-839.70557191,0.0002488,2]
[324877587,1714391440479,-508.52,0.00024931,2]
[324877588,1714391440489,-151.31843755,0.0002495,2]
[324877589,1714391440498,-508.52,0.00024986,2]
[324877590,1714391440508,-154.76784823,0.00025,2]
[324877591,1714391440517,-154.76784823,0.00025,2]
[324877592,1714391440526,-301.63978297,0.00025,2]
[324877593,1714391440535,-508.52,0.00025041,2]
[324877594,1714391440544,-508.52,0.00025095,2]
[324877595,1714391440553,-247.39497151,0.00025121,2]
[324877596,1714391440562,-156.18617836,0.0002513,2]
[324877597,1714391440571,-151.47429953,0.00025139,2]
[324877598,1714391440580,-508.52,0.0002515,2]
[324877599,1714391440590,-156.18617836,0.00025152,2]
[324877600,1714391440600,-823.0,0.00025155,2]
[324877601,1714391440609,-839.70557191,0.00025167,2]
[324877602,1714391440618,-508.52,0.00025205,2]
[324877603,1714391440627,-222.43361259,0.00025245,2]
[324877604,1714391440636,-247.39497151,0.0002525,2]
[324877605,1714391440645,-508.52,0.0002526,2]
[324877606,1714391440656,-508.52,0.00025315,2]
[324877607,1714391440665,-151.47429953,0.00025342,2]
[324877608,1714391440674,-153.79833288,0.00025342,2]
[324877609,1714391440683,-156.18617836,0.00025346,2]
[324877610,1714391440693,-839.70557191,0.00025349,2]
[324877611,1714391440702,-508.52,0.00025369,2]
[324877612,1714391440710,-151.0,0.00025371,2]
[324877613,1714391440720,-508.52,0.00025424,2]
[324877614,1714391440729,-156.18617836,0.00025442,2]
[324877615,1714391440738,-999.0,0.00025479,2]
[324877616,1714391440747,-508.52,0.00025479,2]
[324877617,1714391440756,-508.52,0.00025534,2]
[324877618,1714391440764,-247.39497151,0.00025573,2]
[324877619,1714391440773,-839.70557191,0.0002558,2]
[324877620,1714391440783,-508.52,0.00025589,2]
[324877621,1714391440792,-508.52,0.00025643,2]
[324877622,1714391440802,-151.47429953,0.00025656,2]
[324877623,1714391440811,-508.52,0.00025698,2]
[324877624,1714391440820,-620.00000094,0.00025743,2]
[324877625,1714391440830,-839.70557191,0.00025744,2]
[324877626,1714391440840,-508.52,0.00025753,2]
[324877627,1714391440849,-508.52,0.00025808,2]
[324877628,1714391440858,-508.52,0.00025863,2]
[324877629,1714391440867,-508.61520726,0.00025917,2]
[324877630,1714391440876,-417.0,0.00025985,2]
[324877631,1714391440885,-150.0,0.00025985,2]
[324877632,1714391440894,-1116.6496876,0.00026,2]
[324877633,1714391440903,-247.39497151,0.00026006,2]
[324877634,1714391440912,-151.47429953,0.00026013,2]
[324877635,1714391440920,-222.43361259,0.00026045,2]
[324877636,1714391440929,-247.39497151,0.00026058,2]
[324877637,1714391440939,-247.39497151,0.00026071,2]
[324877638,1714391440947,-222.43361259,0.00026076,2]
[324877639,1714391440956,-247.39497151,0.00026093,2]
[324877640,1714391440966,-156.18617836,0.00026142,2]
[324877641,1714391440974,-151.47429953,0.00026151,2]
[324877642,1714391440983,-222.43361259,0.00026203,2]
[324877643,1714391440992,-247.39497151,0.00026228,2]
[324877644,1714391441001,-247.39497151,0.00026384,2]
[324877645,1714391441011,-153.79833288,0.00026434,2]
[324877646,1714391441019,-839.70557191,0.00026437,2]
[324877647,1714391441029,-247.39497151,0.00026449,2]
[324877648,1714391441038,-151.47429953,0.0002646,2]
[324877649,1714391441047,-839.70557191,0.00026467,2]
[324877651,1714391441055,-151.47429953,0.00026553,2]
[324877652,1714391441064,-999.0,0.00026575,4]
[324877654,1714391441073,-222.43361259,0.00026597,2]
[324877656,1714391441082,-154.76784823,0.000266,2]
[324877657,1714391441095,-154.76784823,0.000266,2]
[324877658,1714391441104,-1452.47576498,0.000266,2]
[324877659,1714391441113,-247.39497151,0.00026674,2]
[324877660,1714391441122,-151.47429953,0.00026706,2]
[324877661,1714391441130,-839.70557191,0.0002672,2]
[324877662,1714391441139,-222.43361259,0.00026722,2]
[324877663,1714391441148,-247.39497151,0.00026805,2]
[324877664,1714391441157,-247.39497151,0.00026809,2]
[324877665,1714391441166,-247.39497151,0.00026822,2]
[324877666,1714391441176,-151.47429953,0.00026831,2]
[324877667,1714391441185,-156.18617836,0.00026866,2]
[324877668,1714391441194,-247.39497151,0.00026873,2]
[324877669,1714391441203,-839.70557191,0.00026893,2]
[324877670,1714391441213,-1000.0,0.00026977,2]
[324877671,1714391441222,-8527.63031331,0.00027,2]
[324877672,1714391441231,-1014.10706898,0.00027,3]
[324877673,1714391441240,-5345.1589257,0.00027,2]
[324877674,1714391441249,-10000.0,0.00027,2]
[324877675,1714391441258,-10000.0,0.00027,2]
[324877676,1714391441267,-10000.0,0.00027,2]
[324877677,1714391441277,-10000.0,0.00027,2]
[324877678,1714391441286,-12084.01768988,0.00027,2]
[324877679,1714391441295,-1610.06024593,0.00027,2]
[324877680,1714391441304,-156.18617836,0.00027006,2]
[324877681,1714391441314,-620.00000005,0.0002703,2]
[324877682,1714391441326,-277.75375946,0.00027055,3]
[324877683,1714391441338,-839.70557191,0.00027072,2]
[324877684,1714391441347,-153.79833288,0.00027128,2]
[324877685,1714391441356,-153.79833288,0.00027145,2]
[324877686,1714391441367,-222.43361259,0.00027158,2]
[324877687,1714391441375,-247.39497151,0.00027173,2]
[324877688,1714391441384,-839.70557191,0.00027196,2]
[324877689,1714391441394,-839.70557191,0.00027205,2]
[324877690,1714391441403,-156.18617836,0.00027244,2]
[324877691,1714391441412,-153.79833288,0.00027251,2]
[324877692,1714391441421,-222.43361259,0.0002736,2]
[324877693,1714391441431,-500.0,0.00027397,2]
[324877694,1714391441439,-166.666666,0.00027397,2]
[324877695,1714391441448,-156.18617836,0.00027423,2]
[324877696,1714391441457,-222.43361259,0.00027428,2]